bitfinex-derivatives/quotes_BTCF0:USTF0_20210703
["timestamp","ask_amount","ask_price","bid_price","bid_amount"]
[1625349532039,0.84089088,34577.0,34568.0,0.24057544]
[1625349532639,0.84089088,34577.0,34573.0,0.29957544]
[1625349532740,0.24057544,34576.0,34573.0,0.29957544]
[1625349532940,0.29957544,34576.0,34573.0,0.29957544]
[1625349535047,0.24057544,34576.0,34573.0,0.29957544]
[1625349535248,0.24057544,34576.0,34573.0,0.35857544]
[1625349535997,0.24057544,34577.0,34573.0,0.35857544]
[1625349536753,0.24057544,34581.0,34576.0,0.48115088]
[1625349537003,0.24057544,34581.0,34576.0,0.59915088]
[1625349537199,0.24057544,34581.0,34576.0,0.54015088]
[1625349537299,0.24057544,34581.0,34576.0,0.59915088]
[1625349537402,0.24057544,34581.0,34576.0,0.82008088]
[1625349538653,0.24057544,34581.0,34576.0,0.59915088]
[1625349538803,0.24057544,34581.0,34580.0,0.24057544]
[1625349543313,0.29957544,34581.0,34580.0,0.24057544]
[1625349544715,0.29957544,34581.0,34576.0,0.48115088]
[1625349544816,0.24057544,34577.0,34576.0,0.48115088]
[1625349544917,0.29957544,34577.0,34576.0,0.48115088]
[1625349545418,0.29957544,34577.0,34573.0,0.24057544]
[1625349545518,0.35857544,34577.0,34573.0,0.24057544]
[1625349545619,0.35857544,34577.0,34565.0,0.24057544]
[1625349545918,0.96147925,34576.0,34565.0,0.24057544]
[1625349546118,1.07947925,34576.0,34565.0,0.24057544]
[1625349546503,0.96091353,34575.0,34565.0,0.24057544]
[1625349546623,1.01991353,34575.0,34559.0,1.01933887]
[1625349546724,1.07891353,34575.0,34559.0,1.01933887]
[1625349546825,0.48115088,34560.0,34558.0,0.24057544]
[1625349546924,0.77919088,34560.0,34558.0,0.24057544]
[1625349547276,0.77919088,34560.0,34553.0,1.01941633]
[1625349547376,0.83819088,34560.0,34553.0,1.01941633]
[1625349547638,0.83819088,34560.0,34554.0,0.0855]
[1625349547727,0.83819088,34560.0,34548.0,1.259303]
[1625349547828,0.89719088,34560.0,34548.0,1.259303]
[1625349548026,0.89719088,34560.0,34548.0,1.01872756]
[1625349548227,0.89719088,34560.0,34544.0,1.07577663]
[1625349548335,0.89719088,34560.0,34544.0,1.01877663]
[1625349548427,0.087,34559.0,34544.0,1.01877663]
[1625349548527,0.83819088,34560.0,34544.0,1.01877663]
[1625349548628,0.118,34559.0,34544.0,1.01877663]
[1625349548730,0.059,34559.0,34544.0,1.01877663]
[1625349548833,0.5,34558.0,34544.0,7.663e-05]
[1625349548928,0.96230176,34545.0,34542.0,1.18857273]
[1625349549030,1.16613176,34545.0,34534.0,0.67920409]
[1625349549227,1.22513176,34545.0,34534.0,0.67920409]
[1625349549429,1.34313176,34545.0,34534.0,0.64060409]
[1625349549578,1.34313176,34545.0,34530.0,0.24057544]
[1625349549831,1.28413176,34545.0,34530.0,0.24057544]
[1625349549929,1.34313176,34545.0,34530.0,0.24057544]
[1625349550028,1.28413176,34545.0,34530.0,0.24057544]
[1625349550134,1.34313176,34545.0,34530.0,0.24057544]
[1625349550281,2.2911222,34545.0,34530.0,0.24057544]
[1625349550881,0.48115088,34531.0,34530.0,0.24057544]
[1625349550981,0.73687088,34531.0,34530.0,0.24057544]
[1625349551285,0.79587088,34531.0,34530.0,0.24057544]
[1625349551433,0.73687088,34531.0,34530.0,0.24057544]
[1625349552082,0.79587088,34531.0,34530.0,0.24057544]
[1625349552685,0.79587088,34531.0,34526.0,0.24057544]
[1625349552885,0.24057544,34527.0,34526.0,0.24057544]
[1625349554385,0.53017544,34527.0,34526.0,0.24057544]
[1625349555188,0.58917544,34527.0,34526.0,0.24057544]
[1625349555287,0.53017544,34527.0,34526.0,0.24057544]
[1625349555389,0.58917544,34527.0,34526.0,0.24057544]
[1625349555489,0.24057544,34527.0,34526.0,0.24057544]
[1625349555638,0.29957544,34527.0,34526.0,0.24057544]
[1625349555988,0.24057544,34527.0,34526.0,0.24057544]
[1625349557592,0.29957544,34527.0,34526.0,0.29957544]
[1625349557691,0.48115088,34531.0,34526.0,0.29957544]
[1625349557843,0.48115088,34531.0,34526.0,0.60106544]
[1625349558042,0.48115088,34531.0,34526.0,0.54206544]
[1625349558143,0.24057544,34531.0,34526.0,0.60106544]
[1625349558946,0.24057544,34535.0,34530.0,0.48115088]
[1625349559047,0.24057544,34535.0,34530.0,0.54015088]
[1625349559750,0.29957544,34535.0,34530.0,0.54015088]
[1625349559902,0.24057544,34535.0,34530.0,0.54015088]
[1625349560202,0.24057544,34542.0,34530.0,0.54015088]
[1625349560352,0.24057544,34542.0,34530.0,0.59915088]
[1625349561001,0.24057544,34542.0,34541.0,1.00902632]
[1625349561151,0.24057544,34542.0,34541.0,1.06802632]
[1625349561502,0.24057544,34542.0,34541.0,1.12702632]
[1625349562102,0.24057544,34542.0,34541.0,1.06802632]
[1625349562204,0.24057544,34542.0,34541.0,1.12702632]
[1625349562706,1.20867544,34552.0,34541.0,1.12702632]
[1625349562958,1.20867544,34552.0,34551.0,0.48115088]
[1625349563056,1.20867544,34552.0,34551.0,0.79293088]
[1625349563157,0.9681,34552.0,34551.0,0.85193088]
[1625349563458,0.9681,34552.0,34551.0,0.91093088]
[1625349563707,0.9681,34552.0,34551.0,0.85193088]
[1625349564909,0.9681,34552.0,34551.0,1.09250632]
[1625349565712,0.9681,34552.0,34551.0,0.78072632]
[1625349565962,1.0271,34552.0,34551.0,0.78072632]
[1625349566262,0.9681,34552.0,34551.0,0.78072632]
[1625349566362,1.0271,34552.0,34551.0,0.78072632]
[1625349566513,1.0271,34552.0,34551.0,0.72172632]
[1625349567366,1.0271,34552.0,34551.0,0.78072632]
[1625349567613,0.9681,34552.0,34551.0,0.78072632]
[1625349569014,0.9681,34552.0,34551.0,1.07643632]
[1625349571367,0.9681,34552.0,34551.0,1.01743632]
[1625349571466,1.0271,34552.0,34551.0,0.72172632]
[1625349571817,0.9681,34552.0,34551.0,0.72172632]
[1625349572217,0.9681,34552.0,34551.0,0.78072632]
[1625349574026,0.24057544,34562.0,34551.0,0.78072632]
[1625349574126,0.059,34562.0,34551.0,1.13573632]
[1625349574223,1.34108686,34569.0,34551.0,1.13573632]
[1625349574375,0.24057544,34569.0,34551.0,1.13573632]
[1625349574477,0.24057544,34569.0,34551.0,1.19273632]
[1625349574775,0.29957544,34569.0,34551.0,1.19273632]
[1625349574876,0.24057544,34569.0,34551.0,1.19273632]
[1625349574976,0.29957544,34569.0,34568.0,0.48115088]
[1625349575125,0.29957544,34569.0,34568.0,0.54015088]
[1625349575225,0.29957544,34569.0,34568.0,0.48115088]
[1625349576029,0.29957544,34569.0,34568.0,0.13804185]
[1625349576429,0.29957544,34569.0,34568.0,0.19704185]
[1625349577283,0.24057544,34569.0,34568.0,0.19704185]
[1625349577883,0.29957544,34569.0,34568.0,0.19704185]
[1625349579488,0.24057544,34569.0,34568.0,0.19704185]
[1625349579788,0.29957544,34569.0,34568.0,0.19704185]
[1625349580087,0.50636544,34569.0,34568.0,0.19704185]
[1625349580939,0.50636544,34569.0,34568.0,0.13804185]
[1625349581490,0.50636544,34569.0,34553.0,0.057]
[1625349581639,0.50636544,34569.0,34553.0,0.059]
[1625349582940,0.46957352,34567.0,34553.0,0.059]
[1625349583041,0.46957352,34567.0,34556.0,0.24057544]
[1625349583042,0.51733544,34557.0,34556.0,0.24057544]
[1625349583141,0.57633544,34557.0,34556.0,0.24057544]
[1625349583640,0.57633544,34557.0,34549.0,0.24057544]
[1625349583743,0.57633544,34557.0,34546.0,0.24057544]
[1625349584242,0.57633544,34557.0,34546.0,0.29957544]
[1625349584743,0.57633544,34557.0,34546.0,0.24057544]
[1625349585042,0.24057544,34547.0,34546.0,0.24057544]
[1625349585142,0.56644544,34547.0,34546.0,0.24057544]
[1625349585392,0.50744544,34547.0,34546.0,0.29957544]
[1625349585895,0.70974393,34557.0,34546.0,0.29957544]
[1625349585996,0.70974393,34557.0,34546.0,0.60616544]
[1625349586147,0.24057544,34557.0,34546.0,0.60616544]
[1625349586496,0.29957544,34557.0,34546.0,0.60616544]
[1625349586748,0.24057544,34557.0,34546.0,0.60616544]
[1625349586997,0.24057544,34557.0,34556.0,0.48115088]
[1625349587197,0.24057544,34557.0,34556.0,0.79786088]
[1625349587298,0.29957544,34557.0,34556.0,0.73886088]
[1625349587397,0.24057544,34557.0,34556.0,0.73886088]
[1625349587498,0.29957544,34557.0,34556.0,0.73886088]
[1625349587897,0.24057544,34557.0,34556.0,0.73886088]
[1625349587997,0.29957544,34557.0,34556.0,0.73886088]
[1625349588248,0.29957544,34557.0,34556.0,0.25771]
[1625349588348,0.29957544,34557.0,34546.0,0.29757544]
[1625349588448,0.53169544,34557.0,34546.0,0.24057544]
[1625349588748,0.01449744,34556.0,34546.0,0.24057544]
[1625349588852,0.07349744,34556.0,34546.0,0.24057544]
[1625349589050,0.24057544,34547.0,34546.0,0.24057544]
[1625349589148,0.53535544,34547.0,34546.0,0.24057544]
[1625349589449,0.53535544,34547.0,34546.0,0.29957544]
[1625349590600,0.24057544,34547.0,34546.0,0.29957544]
[1625349591051,0.29957544,34547.0,34546.0,0.29957544]
[1625349591453,0.29957544,34547.0,34546.0,0.24057544]
[1625349591552,0.49601544,34547.0,34546.0,0.24057544]
[1625349592854,0.49601544,34547.0,34537.0,0.24057544]
[1625349593055,0.24057544,34538.0,34537.0,0.24057544]
[1625349593153,0.50534544,34538.0,34537.0,0.29957544]
[1625349593354,0.56434544,34538.0,34537.0,0.29957544]
[1625349595362,0.56434544,34538.0,34537.0,0.24057544]
[1625349595463,0.56434544,34538.0,34537.0,0.29957544]
[1625349595821,0.56434544,34538.0,34537.0,0.059]
[1625349597071,0.80492088,34538.0,34537.0,0.059]
[1625349597571,0.74592088,34538.0,34537.0,0.059]
[1625349597670,0.54015088,34538.0,34537.0,0.059]
[1625349599922,0.83532088,34538.0,34537.0,0.059]
[1625349600622,0.77632088,34538.0,34537.0,0.059]
[1625349601022,0.54015088,34538.0,34537.0,0.059]
[1625349603076,0.54015088,34538.0,34537.0,0.29957544]
[1625349604933,0.46983658,34542.0,34537.0,0.51441544]
[1625349605035,0.46983658,34542.0,34537.0,0.57341544]
[1625349605132,0.46983658,34542.0,34541.0,0.48115088]
[1625349605235,0.46983658,34542.0,34541.0,0.59915088]
[1625349605483,0.47125229,34547.0,34541.0,0.59915088]
[1625349606085,0.47166579,34550.0,34541.0,0.59915088]
[1625349606486,0.29356579,34550.0,34541.0,1.09915088]
[1625349606636,0.47231659,34555.0,34543.0,0.51039636]
[1625349606736,0.47231659,34555.0,34543.0,1.06939636]
[1625349606885,0.47231659,34555.0,34543.0,1.12839636]
[1625349607187,0.94468939,34559.0,34554.0,0.91527632]
[1625349607291,0.94468939,34559.0,34554.0,1.03327632]
[1625349607691,1.88107048,34560.0,34554.0,1.03327632]
[1625349608091,1.88107048,34560.0,34554.0,1.53327632]
[1625349608192,0.9358,34560.0,34554.0,1.53327632]
[1625349608843,0.31588211,34565.0,34555.0,0.34028925]
[1625349608943,0.31588211,34565.0,34556.0,0.5]
[1625349609142,0.31588211,34565.0,34564.0,0.72172632]
[1625349609243,0.31643929,34569.0,34564.0,0.98484632]
[1625349609342,0.31643929,34569.0,34564.0,1.04384632]
[1625349609543,0.31643929,34569.0,34564.0,1.54384632]
[1625349609794,0.3166374,34571.0,34564.0,1.04384632]
[1625349610244,0.31651294,34569.0,34564.0,1.04384632]
[1625349610695,0.31671852,34570.0,34564.0,1.04384632]
[1625349611145,0.31671852,34570.0,34569.0,0.48115088]
[1625349611245,1.26522013,34574.0,34569.0,0.48115088]
[1625349611246,1.10708738,34572.0,34569.0,0.48115088]
[1625349611395,1.10708738,34572.0,34569.0,0.59915088]
[1625349611545,0.63268783,34570.0,34569.0,0.59915088]
[1625349611846,0.63268783,34570.0,34569.0,0.54015088]
[1625349614097,0.63268783,34570.0,34569.0,0.59915088]
[1625349614197,0.63268783,34570.0,34569.0,0.54015088]
[1625349614547,0.63268783,34570.0,34569.0,0.59915088]
[1625349614999,0.63463277,34571.0,34569.0,0.54015088]
[1625349615099,0.63463277,34571.0,34569.0,0.78959088]
[1625349615200,0.63463277,34571.0,34570.0,0.24057544]
[1625349615299,0.63463277,34571.0,34570.0,0.29957544]
[1625349615452,0.31753578,34571.0,34570.0,0.35857544]
[1625349615798,0.63491287,34572.0,34570.0,0.35857544]
[1625349616853,0.31772254,34572.0,34570.0,0.35857544]
[1625349617354,0.63528629,34574.0,34570.0,0.35857544]
[1625349617355,0.31766391,34573.0,34570.0,0.35857544]
[1625349619208,0.31766391,34573.0,34572.0,0.24057544]
[1625349619358,0.31766391,34573.0,34572.0,0.29957544]
[1625349619863,0.63528629,34574.0,34572.0,0.29957544]
[1625349620661,0.6378653,34573.0,34572.0,0.29957544]
[1625349620761,0.8782453,34573.0,34572.0,0.29957544]
[1625349622019,0.9962453,34573.0,34572.0,0.24057544]
[1625349622318,3.38437708,34573.0,34572.0,0.24057544]
[1625349622770,4.81514936,34573.0,34570.0,0.24057544]
[1625349622919,4.81514936,34573.0,34547.0,0.33973578]
[1625349623020,4.44881945,34571.0,34547.0,0.33973578]
[1625349623168,4.56681945,34571.0,34547.0,0.45773578]
[1625349623271,0.24057544,34560.0,34559.0,0.24057544]
[1625349623422,0.43142544,34560.0,34559.0,0.24057544]
[1625349623520,0.74934553,34560.0,34559.0,0.24057544]
[1625349623769,0.80834553,34560.0,34559.0,0.24057544]
[1625349624020,1.12566081,34560.0,34559.0,0.24057544]
[1625349624269,1.12566081,34560.0,34555.0,0.24057544]
[1625349624369,2.23674595,34560.0,34555.0,0.24057544]
[1625349624821,2.23674595,34560.0,34555.0,0.29957544]
[1625349624922,0.31753983,34556.0,34555.0,0.24057544]
[1625349625271,0.55811527,34556.0,34555.0,0.24057544]
[1625349625476,0.29957544,34556.0,34555.0,0.24057544]
[1625349625574,0.24057544,34556.0,34555.0,0.24057544]
[1625349625722,0.29957544,34556.0,34555.0,0.24057544]
[1625349625825,0.8753786,34556.0,34555.0,0.24057544]
[1625349625974,0.9343786,34556.0,34555.0,0.29957544]
[1625349626073,0.29957544,34556.0,34555.0,0.29957544]
[1625349626173,0.24057544,34556.0,34555.0,0.29957544]
[1625349626273,0.29957544,34556.0,34555.0,0.059]
[1625349626374,0.29957544,34556.0,34542.0,0.33983163]
[1625349626486,0.35857544,34556.0,34544.0,0.059]
[1625349626926,0.31637727,34549.0,34544.0,0.059]
[1625349627026,0.51094727,34549.0,34544.0,0.059]
[1625349627224,0.56994727,34549.0,34536.0,0.33986241]
[1625349627325,0.48115088,34545.0,34541.0,0.24057544]
[1625349627527,0.54015088,34545.0,34541.0,0.24057544]
[1625349627628,0.54015088,34545.0,34541.0,0.29957544]
[1625349628729,0.48115088,34545.0,34541.0,0.29957544]
[1625349628928,0.54015088,34545.0,34541.0,0.29957544]
[1625349629027,0.48115088,34545.0,34541.0,0.24057544]
[1625349629130,0.48115088,34545.0,34541.0,0.29957544]
[1625349629628,0.48115088,34545.0,34541.0,0.35857544]
[1625349630428,0.24057544,34549.0,34541.0,0.35857544]
[1625349630580,0.24057544,34549.0,34541.0,1.09281544]
[1625349630778,0.24057544,34549.0,34541.0,0.59281544]
[1625349631030,0.24057544,34549.0,34543.0,0.33979188]
[1625349631130,0.24057544,34549.0,34543.0,0.39879188]
[1625349631230,0.24057544,34549.0,34543.0,0.45779188]
[1625349631377,0.55585559,34556.0,34548.0,0.48115088]
[1625349631478,0.55585559,34556.0,34548.0,0.83950088]
[1625349631678,0.24057544,34556.0,34548.0,0.83950088]
[1625349633335,0.24057544,34556.0,34555.0,0.48115088]
[1625349633433,0.24057544,34556.0,34555.0,0.54015088]
[1625349633539,0.24057544,34556.0,34555.0,0.59915088]
[1625349635541,0.24057544,34556.0,34555.0,0.84086088]
[1625349637299,0.24057544,34559.0,34555.0,0.84086088]
[1625349637403,0.24057544,34559.0,34557.0,0.24057544]
[1625349637497,1.29732208,34562.0,34557.0,0.29957544]
[1625349637602,0.9824,34562.0,34557.0,0.35857544]
[1625349639352,0.9824,34562.0,34561.0,0.24057544]
[1625349639452,0.9824,34562.0,34561.0,0.35857544]
[1625349641356,0.9824,34562.0,34561.0,0.59915088]
[1625349643759,1.0414,34562.0,34561.0,0.54015088]
[1625349643862,0.9824,34562.0,34561.0,0.54015088]
[1625349643962,0.9824,34562.0,34561.0,0.48115088]
[1625349644062,0.9824,34562.0,34561.0,0.54015088]
[1625349644664,1.2628,34562.0,34561.0,0.54015088]
[1625349645014,1.2628,34562.0,34561.0,0.48115088]
[1625349645415,1.50337544,34562.0,34561.0,0.48115088]
[1625349647470,1.22297544,34562.0,34561.0,0.54015088]
[1625349647569,1.22297544,34562.0,34561.0,0.80424088]
[1625349647570,0.9824,34562.0,34561.0,0.80424088]
[1625349648369,0.9824,34562.0,34561.0,0.86324088]
[1625349648769,0.9824,34562.0,34561.0,0.59915088]
[1625349649119,1.17249,34562.0,34561.0,0.59915088]
[1625349649820,1.17249,34562.0,34561.0,0.54015088]
[1625349649920,1.17249,34562.0,34561.0,0.59915088]
[1625349650020,1.17249,34562.0,34561.0,0.54015088]
[1625349650271,1.17249,34562.0,34561.0,0.48115088]
[1625349650620,1.17249,34562.0,34561.0,0.54015088]
[1625349650720,1.17249,34562.0,34561.0,0.48115088]
[1625349652477,1.17249,34562.0,34561.0,0.54015088]
[1625349652577,1.17249,34562.0,34561.0,0.48115088]
[1625349653526,1.17249,34562.0,34561.0,0.54015088]
[1625349653627,1.17249,34562.0,34561.0,0.48115088]
[1625349653728,1.17249,34562.0,34561.0,0.54015088]
[1625349654580,0.9824,34562.0,34561.0,0.54015088]
[1625349654931,0.9824,34562.0,34561.0,0.59915088]
[1625349655032,0.9824,34562.0,34561.0,0.54015088]
[1625349655132,0.9824,34562.0,34561.0,0.59915088]
[1625349655481,1.22297544,34562.0,34561.0,0.59915088]
[1625349655581,1.48916544,34562.0,34561.0,0.54015088]
[1625349655682,1.48916544,34562.0,34561.0,0.59915088]
[1625349656285,1.48916544,34562.0,34561.0,0.54015088]
[1625349656386,1.48916544,34562.0,34561.0,0.59915088]
[1625349656587,1.48916544,34562.0,34561.0,0.48115088]
[1625349657990,1.64715503,34562.0,34561.0,0.48115088]
[1625349658789,1.96390061,34562.0,34561.0,0.48115088]
[1625349659043,1.80591102,34562.0,34561.0,0.48115088]
[1625349660245,2.12401156,34562.0,34561.0,0.48115088]
[1625349660595,2.13845191,34562.0,34561.0,0.48115088]
[1625349661948,3.09078342,34562.0,34561.0,0.48115088]
[1625349662897,3.09078342,34562.0,34561.0,0.24057544]
[1625349663099,4.20258768,34562.0,34557.0,0.24057544]
[1625349663201,4.26158768,34562.0,34557.0,0.24057544]
[1625349663298,4.26158768,34562.0,34552.0,0.25543558]
[1625349663405,4.26158768,34562.0,34557.0,0.059]
[1625349663507,0.48115088,34558.0,34557.0,0.059]
[1625349663601,0.48115088,34558.0,34553.0,0.24057544]
[1625349663602,2.06819545,34558.0,34553.0,0.24057544]
[1625349663750,2.18619545,34558.0,34553.0,0.24057544]
[1625349664051,0.01444202,34557.0,34553.0,0.24057544]
[1625349664253,1.58552274,34554.0,34553.0,0.24057544]
[1625349664354,1.78826274,34554.0,34553.0,0.24057544]
[1625349664652,1.80270483,34554.0,34553.0,0.24057544]
[1625349665254,2.91303439,34554.0,34553.0,0.24057544]
[1625349665555,3.15360983,34554.0,34553.0,0.24057544]
[1625349665654,3.13916774,34554.0,34553.0,0.24057544]
[1625349665756,1.07755624,34554.0,34553.0,0.24057544]
[1625349665855,0.87481624,34554.0,34553.0,0.24057544]
[1625349666006,0.87481624,34554.0,34553.0,0.24500759]
[1625349666156,0.4789878,34554.0,34553.0,0.24500759]
[1625349666257,0.4789878,34554.0,34553.0,0.30400759]
[1625349666659,0.24057544,34554.0,34553.0,0.5009049]
[1625349666859,0.24057544,34554.0,34553.0,0.6189049]
[1625349666959,0.24057544,34554.0,34553.0,0.5599049]
[1625349667209,0.24057544,34554.0,34553.0,0.6189049]
[1625349667512,0.07954883,34555.0,34553.0,0.60358303]
[1625349667513,0.23832553,34555.0,34553.0,0.60358303]
[1625349667614,0.23832553,34555.0,34553.0,0.87613303]
[1625349668111,0.47891975,34558.0,34554.0,0.74577889]
[1625349668212,0.47891975,34558.0,34554.0,0.80477889]
[1625349668613,0.47891975,34558.0,34555.0,0.00443135]
[1625349668714,0.47891975,34558.0,34555.0,0.12243135]
[1625349668815,0.24057544,34558.0,34557.0,0.25589382]
[1625349668915,0.24057544,34558.0,34557.0,0.37389382]
[1625349669115,0.24057544,34558.0,34557.0,0.37832509]
[1625349669517,0.24057544,34558.0,34557.0,0.64516835]
[1625349669767,0.24057544,34558.0,34557.0,0.90104525]
[1625349670216,0.24057544,34558.0,34557.0,0.30400671]
[1625349670516,0.47828978,34558.0,34557.0,0.30400671]
[1625349670918,0.31986631,34558.0,34557.0,0.30400671]
[1625349671068,0.31986631,34558.0,34557.0,0.36300671]
[1625349671167,0.24057544,34558.0,34557.0,0.44830786]
[1625349671568,0.24057544,34558.0,34557.0,0.87481018]
[1625349671868,0.24057544,34558.0,34557.0,0.70420902]
[1625349672420,0.24057544,34558.0,34557.0,0.61893301]
[1625349672873,0.24057544,34558.0,34557.0,0.44831548]
[1625349673623,0.24057544,34558.0,34557.0,0.61892582]
[1625349673971,0.24057544,34558.0,34557.0,0.87486252]
[1625349674273,0.24057544,34558.0,34557.0,0.70425218]
[1625349674825,0.53235544,34558.0,34557.0,0.70425218]
[1625349675026,0.53235544,34558.0,34557.0,0.9601901]
[1625349675226,0.53235544,34558.0,34557.0,0.9011901]
[1625349675427,0.61158213,34558.0,34557.0,0.30400671]
[1625349675876,0.62603296,34558.0,34557.0,0.30400671]
[1625349676028,0.54680627,34558.0,34557.0,0.30400671]
[1625349676678,2.13082796,34558.0,34557.0,0.30400671]
[1625349677178,2.13082796,34558.0,34557.0,0.29957544]
[1625349677579,3.24234369,34558.0,34557.0,0.29957544]
[1625349678533,3.22789286,34558.0,34557.0,0.29957544]
[1625349678781,3.24233051,34558.0,34557.0,0.29957544]
[1625349679234,3.24233051,34558.0,34557.0,0.35857544]
[1625349687155,4.50963652,34558.0,34557.0,0.35857544]
[1625349687606,4.75021196,34558.0,34557.0,0.35857544]
[1625349688307,3.48290595,34558.0,34557.0,0.35857544]
[1625349688663,4.74826335,34558.0,34557.0,0.29957544]
[1625349689060,4.74826335,34558.0,34557.0,0.059]
[1625349689314,4.80726335,34558.0,34557.0,0.059]
[1625349689564,6.23081976,34558.0,34557.0,0.059]
[1625349691966,7.80949066,34558.0,34557.0,0.059]
[1625349692567,7.75049066,34558.0,34557.0,0.059]
[1625349692666,7.80949066,34558.0,34557.0,0.059]
[1625349692818,7.75049066,34558.0,34557.0,0.059]
[1625349692966,7.75049066,34558.0,34548.0,0.24057544]
[1625349693117,7.75049066,34558.0,34548.0,0.29957544]
[1625349693217,7.80949066,34558.0,34548.0,0.29957544]
[1625349693317,0.01444873,34557.0,34548.0,0.29957544]
[1625349693670,0.24057544,34549.0,34548.0,0.29957544]
[1625349693768,0.50659544,34549.0,34548.0,0.29957544]
[1625349693918,2.08490551,34549.0,34548.0,0.29957544]
[1625349694471,3.18960737,34549.0,34548.0,0.29957544]
[1625349694624,3.18960737,34549.0,34548.0,0.35857544]
[1625349694720,3.18960737,34549.0,34548.0,0.29957544]
[1625349694870,3.18960737,34549.0,34548.0,0.35857544]
[1625349694970,3.18960737,34549.0,34548.0,0.29957544]
[1625349695070,2.08490551,34549.0,34548.0,0.29957544]
[1625349695472,3.18908353,34549.0,34548.0,0.29957544]
[1625349696776,3.66207772,34549.0,34548.0,0.29957544]
[1625349698577,3.66207772,34549.0,34548.0,0.24057544]
[1625349698829,3.66207772,34549.0,34544.0,0.24057544]
[1625349698927,4.92121707,34549.0,34544.0,0.24057544]
[1625349699077,4.98021707,34549.0,34544.0,0.24057544]
[1625349699480,2.0440755,34545.0,34544.0,0.24057544]
[1625349699678,2.34365094,34545.0,34544.0,0.24057544]
[1625349700382,3.44420899,34545.0,34544.0,0.24057544]
[1625349700980,3.44420899,34545.0,34544.0,0.29957544]
[1625349701082,3.38520899,34545.0,34544.0,0.29957544]
[1625349701582,0.319416,34545.0,34544.0,0.38495016]
[1625349701681,0.07884056,34545.0,34544.0,0.38495016]
[1625349702082,0.07884056,34545.0,34544.0,0.89726128]
[1625349702181,0.34317056,34545.0,34544.0,0.83826128]
[1625349702383,0.40217056,34545.0,34544.0,0.83826128]
[1625349702582,3.41760237,34545.0,34544.0,0.24057544]
[1625349703182,2.31402009,34545.0,34544.0,0.24057544]
[1625349703384,2.37302009,34545.0,34544.0,0.24057544]
[1625349703533,2.31402009,34545.0,34544.0,0.24057544]
[1625349703734,3.65922551,34545.0,34544.0,0.24057544]
[1625349703833,3.71822551,34545.0,34544.0,0.24057544]
[1625349704283,2.55459553,34545.0,34544.0,0.24057544]
[1625349704785,2.55459553,34545.0,34544.0,0.29957544]
[1625349705434,1.60864535,34545.0,34544.0,0.29957544]
[1625349705634,1.60864535,34545.0,34544.0,0.24057544]
[1625349705886,3.66045173,34545.0,34544.0,0.24057544]
[1625349706135,3.66045173,34545.0,34544.0,0.29957544]
[1625349706285,3.66045173,34545.0,34544.0,0.24057544]
[1625349706435,2.55564505,34545.0,34544.0,0.24057544]
[1625349706535,2.55564505,34545.0,34544.0,0.29957544]
[1625349706686,2.55564505,34545.0,34544.0,0.24057544]
[1625349706787,1.60864535,34545.0,34544.0,0.24057544]
[1625349706937,1.60864535,34545.0,34544.0,0.29957544]
[1625349707139,1.60864535,34545.0,34544.0,0.24057544]
[1625349707287,1.60864535,34545.0,34544.0,0.29957544]
[1625349707389,1.60864535,34545.0,34544.0,0.24057544]
[1625349707487,1.60864535,34545.0,34544.0,0.29957544]
[1625349707638,0.97795935,34545.0,34544.0,0.29957544]
[1625349708740,1.29370802,34545.0,34544.0,0.29957544]
[1625349708840,1.05313258,34545.0,34544.0,0.29957544]
[1625349709090,0.07915219,34547.0,34544.0,0.81591198]
[1625349709591,0.47428118,34548.0,34545.0,0.59721963]
[1625349709592,0.23720224,34548.0,34545.0,0.59721963]
[1625349709690,0.23720224,34548.0,34547.0,0.24057544]
[1625349709897,0.23720224,34548.0,34547.0,0.29957544]
[1625349709996,0.23702016,34549.0,34547.0,0.29957544]
[1625349710341,0.55258301,34549.0,34547.0,0.29957544]
[1625349710690,0.23702016,34549.0,34547.0,0.29957544]
[1625349711093,0.55235512,34550.0,34547.0,0.55552936]
[1625349711693,0.55235512,34550.0,34549.0,0.24057544]
[1625349711794,0.55235512,34550.0,34549.0,0.50460544]
[1625349711895,0.55235512,34550.0,34549.0,0.56360544]
[1625349711994,0.4733802,34550.0,34549.0,0.56360544]
[1625349712345,0.23673618,34550.0,34549.0,0.56360544]
[1625349712848,0.23673618,34550.0,34549.0,1.06360544]
[1625349712947,0.23673618,34550.0,34549.0,1.12260544]
[1625349713047,0.19384941,34552.0,34549.0,1.12703496]
[1625349713349,0.19384941,34552.0,34550.0,0.00442956]
[1625349713450,0.94714615,34559.0,34550.0,0.06342956]
[1625349713547,0.94714615,34559.0,34550.0,0.12242956]
[1625349713800,0.94714615,34559.0,34558.0,0.72172632]
[1625349713900,0.94714615,34559.0,34558.0,0.99326632]
[1625349714001,0.94714615,34559.0,34558.0,1.05226632]
[1625349714650,1.10497754,34561.0,34558.0,1.05226632]
[1625349714651,0.94759639,34561.0,34558.0,1.05226632]
[1625349714800,1.00659639,34561.0,34558.0,1.05226632]
[1625349715754,1.00659639,34561.0,34558.0,1.29284176]
[1625349715954,0.9467761,34559.0,34558.0,1.29284176]
[1625349720413,1.2448961,34559.0,34558.0,1.02130176]
[1625349721113,1.3038961,34559.0,34558.0,1.02130176]
[1625349721463,3.6690592,34559.0,34558.0,1.02130176]
[1625349721764,3.90963464,34559.0,34558.0,0.78072632]
[1625349722969,3.92410291,34559.0,34558.0,0.78072632]
[1625349725422,3.92410291,34559.0,34558.0,0.29957544]
[1625349726575,3.92410291,34559.0,34558.0,0.24057544]
[1625349728276,3.92410291,34559.0,34558.0,0.29957544]
[1625349728377,3.92410291,34559.0,34558.0,0.24057544]
[1625349728627,3.92410291,34559.0,34558.0,0.29957544]
[1625349728727,3.86510291,34559.0,34558.0,0.29957544]
[1625349728828,3.90963464,34559.0,34558.0,0.29957544]
[1625349728929,3.85063464,34559.0,34558.0,0.29957544]
[1625349730382,3.90963464,34559.0,34558.0,0.29957544]
[1625349731035,2.64822483,34559.0,34558.0,0.29957544]
[1625349731790,2.58922483,34559.0,34558.0,0.29957544]
[1625349731986,2.34864939,34559.0,34558.0,0.29957544]
[1625349732287,0.29812,34559.0,34558.0,0.29957544]
[1625349732386,0.94728176,34561.0,34558.0,0.29957544]
[1625349732485,1.00628176,34561.0,34558.0,0.79957544]
[1625349732636,0.94728176,34561.0,34558.0,0.86299612]
[1625349732837,0.9824,34562.0,34559.0,0.0044204]
[1625349733037,0.9824,34562.0,34559.0,0.1224204]
[1625349733138,0.9824,34562.0,34560.0,0.5]
[1625349733242,0.9824,34562.0,34561.0,1.0240035]
[1625349733339,0.9824,34562.0,34561.0,1.5240035]
[1625349733438,0.9824,34562.0,34561.0,1.5830035]
[1625349733639,0.9824,34562.0,34561.0,1.5874235]
[1625349733737,0.9824,34562.0,34561.0,1.6464235]
[1625349733941,0.9824,34562.0,34561.0,2.12757438]
[1625349734693,0.1865,34562.0,34561.0,2.12757438]
[1625349734892,0.94940585,34569.0,34561.0,2.12757438]
[1625349735044,1.26582174,34573.0,34561.0,2.12757438]